[Event "Titled Tuesday Blitz June 27 Late 2023"]
[White "Inepton_Fermion"]
[Black "Graif, William"]
[BlackFideId "2609835"]
[WhiteElo "2361"]
[BlackElo "2486"]
[Result "1-0"]
[Round "11"]
[TimeControl "180+2"]
[Date "2023.06.27"]
[WhiteClock "0:00:09"]
[BlackClock "0:00:07"]
[Board "77"]

1. d4 {[%clk 0:03:00]}  Nf6 {[%clk 0:02:58]} 2. Bg5 {[%clk 0:02:59]}  d5 {[%clk 0:02:55]} 3. Bxf6 {[%clk 0:02:59]}  gxf6 {[%clk 0:02:54]} 4. c4 {[%clk 0:02:52]}  c6 {[%clk 0:02:41]} 5. cxd5 {[%clk 0:02:48]}  cxd5 {[%clk 0:02:41]} 6. e3 {[%clk 0:02:48]}  Nc6 {[%clk 0:02:37]} 7. Nc3 {[%clk 0:02:41]}  e6 {[%clk 0:02:14]} 8. Qh5 {[%clk 0:02:28]}  Bd7 {[%clk 0:02:05]} 9. Bd3 {[%clk 0:02:26]}  Qb6 {[%clk 0:01:40]} 10. Nge2 {[%clk 0:02:22]}  Bd6 {[%clk 0:01:27]} 11. O-O {[%clk 0:02:19]}  f5 {[%clk 0:01:05]} 12. Ng3 {[%clk 0:01:51]}  Ne7 {[%clk 0:00:58]} 13. Rac1 {[%clk 0:01:39]}  Ng6 {[%clk 0:00:54]} 14. Bxf5 {[%clk 0:01:13]}  exf5 {[%clk 0:00:51]} 15. Nxd5 {[%clk 0:01:12]}  Qd8 {[%clk 0:00:45]} 16. Nxf5 {[%clk 0:01:08]}  Bxf5 {[%clk 0:00:36]} 17. Qxf5 {[%clk 0:01:09]}  O-O {[%clk 0:00:30]} 18. e4 {[%clk 0:00:44]}  Be7 {[%clk 0:00:16]} 19. g3 {[%clk 0:00:31]}  Rc8 {[%clk 0:00:16]} 20. Rxc8 {[%clk 0:00:26]}  Qxc8 {[%clk 0:00:16]} 21. Qxg6+ {[%clk 0:00:27]}  hxg6 {[%clk 0:00:14]} 22. Nxe7+ {[%clk 0:00:27]}  Kg7 {[%clk 0:00:14]} 23. Nxc8 {[%clk 0:00:28]}  Rxc8 {[%clk 0:00:14]} 24. Rd1 {[%clk 0:00:28]}  Kf6 {[%clk 0:00:13]} 25. Kg2 {[%clk 0:00:26]}  Rc2 {[%clk 0:00:12]} 26. Kf3 {[%clk 0:00:20]}  Rxb2 {[%clk 0:00:12]} 27. e5+ {[%clk 0:00:20]}  Ke6 {[%clk 0:00:10]} 28. Ke3 {[%clk 0:00:20]}  Rxa2 {[%clk 0:00:10]} 29. f4 {[%clk 0:00:20]}  Kd5 {[%clk 0:00:08]} 30. g4 {[%clk 0:00:12]}  Rxh2 {[%clk 0:00:06]} 31. f5 {[%clk 0:00:10]}  g5 {[%clk 0:00:05]} 32. Rc1 {[%clk 0:00:08]}  Rh3+ {[%clk 0:00:05]} 33. Kf2 {[%clk 0:00:08]}  Kxd4 {[%clk 0:00:05]} 34. e6 {[%clk 0:00:08]}  fxe6 {[%clk 0:00:04]} 35. fxe6 {[%clk 0:00:09]}  Rh7 {[%clk 0:00:04]} 36. Rd1+ {[%clk 0:00:07]}  Ke5 {[%clk 0:00:03]} 37. Rd7 {[%clk 0:00:08]}  Rh8 {[%clk 0:00:03]} 38. e7 {[%clk 0:00:05]}  Re8 {[%clk 0:00:02]} 39. Rxb7 {[%clk 0:00:05]}  a5 {[%clk 0:00:01]} 40. Rb5+ {[%clk 0:00:05]}  Kf6 {[%clk 0:00:02]} 41. Rf5+ {[%clk 0:00:05]}  Kxe7 {[%clk 0:00:01]} 42. Rxa5 {[%clk 0:00:03]}  Ra8 {[%clk 0:00:02]} 43. Rxa8 {[%clk 0:00:03]}  Kf6 {[%clk 0:00:02]} 44. Ra5 {[%clk 0:00:04]}  Kg6 {[%clk 0:00:02]} 45. Ra6+ {[%clk 0:00:04]}  Kf7 {[%clk 0:00:03]} 46. Ke3 {[%clk 0:00:05]}  Ke7 {[%clk 0:00:04]} 47. Ke4 {[%clk 0:00:05]}  Kf7 {[%clk 0:00:05]} 48. Kf5 {[%clk 0:00:06]}  Kg7 {[%clk 0:00:05]} 49. Ra7+ {[%clk 0:00:07]}  Kf8 {[%clk 0:00:06]} 50. Kxg5 {[%clk 0:00:06]}  Ke8 {[%clk 0:00:07]} 51. Kf6 {[%clk 0:00:07]}  Kd8 {[%clk 0:00:08]} 52. Re7 {[%clk 0:00:07]}  Kc8 {[%clk 0:00:08]} 53. g5 {[%clk 0:00:07]}  Kb8 {[%clk 0:00:09]} 54. g6 {[%clk 0:00:08]}  Kc8 {[%clk 0:00:07]} 55. g7 {[%clk 0:00:09]} 1-0


[Site "https://www.chess.com"]

[Event "Titled Tuesday Blitz June 27 Late 2023"]
[White "Cluke86"]
[Black "Ai, Evan"]
[BlackFideId "2094770"]
[WhiteElo "2273"]
[BlackElo "2426"]
[Result "0-1"]
[Round "11"]
[TimeControl "180+2"]
[Date "2023.06.27"]
[WhiteClock "0:01:01"]
[BlackClock "0:01:55"]
[Board "82"]

1. e4 {[%clk 0:03:00]}  e5 {[%clk 0:03:00]} 2. Nf3 {[%clk 0:03:00]}  Nc6 {[%clk 0:03:00]} 3. Bc4 {[%clk 0:03:00]}  Nf6 {[%clk 0:03:00]} 4. O-O {[%clk 0:02:59]}  Nxe4 {[%clk 0:02:59]} 5. Nc3 {[%clk 0:02:58]}  Nxc3 {[%clk 0:02:56]} 6. dxc3 {[%clk 0:02:59]}  Be7 {[%clk 0:02:56]} 7. Qd5 {[%clk 0:02:57]}  O-O {[%clk 0:02:54]} 8. Nxe5 {[%clk 0:02:56]}  Nxe5 {[%clk 0:02:55]} 9. Qxe5 {[%clk 0:02:56]}  d6 {[%clk 0:02:55]} 10. Qh5 {[%clk 0:02:52]}  g6 {[%clk 0:02:51]} 11. Qf3 {[%clk 0:02:50]}  c6 {[%clk 0:02:43]} 12. Bh6 {[%clk 0:02:43]}  d5 {[%clk 0:02:34]} 13. Bxf8 {[%clk 0:02:40]}  Bxf8 {[%clk 0:02:35]} 14. Bd3 {[%clk 0:02:36]}  Bg7 {[%clk 0:02:33]} 15. Rfe1 {[%clk 0:02:35]}  Be6 {[%clk 0:02:32]} 16. h3 {[%clk 0:02:26]}  a5 {[%clk 0:02:31]} 17. a4 {[%clk 0:02:26]}  Qb6 {[%clk 0:02:29]} 18. h4 {[%clk 0:02:14]}  Qxb2 {[%clk 0:02:25]} 19. h5 {[%clk 0:02:10]}  Qxc3 {[%clk 0:02:24]} 20. hxg6 {[%clk 0:02:04]}  hxg6 {[%clk 0:02:25]} 21. Rab1 {[%clk 0:02:02]}  b5 {[%clk 0:02:19]} 22. axb5 {[%clk 0:01:59]}  cxb5 {[%clk 0:02:20]} 23. Rxe6 {[%clk 0:01:29]}  fxe6 {[%clk 0:02:17]} 24. Qg4 {[%clk 0:01:28]}  b4 {[%clk 0:02:04]} 25. Bxg6 {[%clk 0:01:20]}  Qf6 {[%clk 0:02:03]} 26. Qh5 {[%clk 0:01:18]}  Kf8 {[%clk 0:02:01]} 27. Rb3 {[%clk 0:01:17]}  Ke7 {[%clk 0:01:59]} 28. Rf3 {[%clk 0:01:16]}  Qa1+ {[%clk 0:01:59]} 29. Kh2 {[%clk 0:01:16]}  Rh8 {[%clk 0:02:00]} 30. Rf7+ {[%clk 0:01:01]}  Kd6 {[%clk 0:01:55]} 0-1


[Site "https://www.chess.com"]

[Event "Titled Tuesday Blitz June 27 Late 2023"]
[White "Vega Gutierrez, Sabrina"]
[Black "Kornyukov, Alexey"]
[WhiteFideId "2219026"]
[BlackFideId "4150457"]
[WhiteElo "2398"]
[BlackElo "2250"]
[Result "1-0"]
[Round "11"]
[TimeControl "180+2"]
[Date "2023.06.27"]
[WhiteClock "0:00:16"]
[BlackClock "0:00:04"]
[Board "83"]

1. e4 {[%clk 0:03:00]}  c5 {[%clk 0:02:57]} 2. Nf3 {[%clk 0:03:00]}  Nc6 {[%clk 0:02:57]} 3. d4 {[%clk 0:03:01]}  cxd4 {[%clk 0:02:58]} 4. Nxd4 {[%clk 0:03:01]}  Nf6 {[%clk 0:02:58]} 5. Nc3 {[%clk 0:03:01]}  e5 {[%clk 0:02:58]} 6. Ndb5 {[%clk 0:03:02]}  d6 {[%clk 0:02:58]} 7. Bg5 {[%clk 0:03:02]}  a6 {[%clk 0:02:58]} 8. Na3 {[%clk 0:03:02]}  b5 {[%clk 0:02:59]} 9. Nd5 {[%clk 0:03:02]}  Be7 {[%clk 0:02:58]} 10. Bxf6 {[%clk 0:03:02]}  Bxf6 {[%clk 0:02:59]} 11. c4 {[%clk 0:03:03]}  bxc4 {[%clk 0:02:39]} 12. Nxc4 {[%clk 0:03:00]}  O-O {[%clk 0:02:39]} 13. Be2 {[%clk 0:02:49]}  Nd4 {[%clk 0:02:32]} 14. O-O {[%clk 0:02:49]}  Bb7 {[%clk 0:02:28]} 15. Nce3 {[%clk 0:02:42]}  Rb8 {[%clk 0:02:20]} 16. Bc4 {[%clk 0:02:39]}  Bxd5 {[%clk 0:02:10]} 17. Nxd5 {[%clk 0:02:39]}  Rxb2 {[%clk 0:02:08]} 18. Bxa6 {[%clk 0:02:21]}  Bg5 {[%clk 0:02:03]} 19. Qd3 {[%clk 0:01:56]}  g6 {[%clk 0:01:35]} 20. Bc4 {[%clk 0:01:50]}  Qa5 {[%clk 0:01:26]} 21. Rab1 {[%clk 0:01:07]}  Rfb8 {[%clk 0:01:16]} 22. Rxb2 {[%clk 0:01:07]}  Rxb2 {[%clk 0:01:17]} 23. Rb1 {[%clk 0:00:41]}  Ne2+ {[%clk 0:00:43]} 24. Kf1 {[%clk 0:00:27]}  Nc1 {[%clk 0:00:08]} 25. Rxb2 {[%clk 0:00:19]}  Nxd3 {[%clk 0:00:06]} 26. Bxd3 {[%clk 0:00:19]}  Qc3 {[%clk 0:00:05]} 27. Nxc3 {[%clk 0:00:19]}  Bc1 {[%clk 0:00:04]} 28. Rb7 {[%clk 0:00:18]}  Kg7 {[%clk 0:00:03]} 29. Bc4 {[%clk 0:00:18]}  Bd2 {[%clk 0:00:03]} 30. Rxf7+ {[%clk 0:00:18]}  Kh6 {[%clk 0:00:03]} 31. Nb5 {[%clk 0:00:18]}  d5 {[%clk 0:00:03]} 32. Bxd5 {[%clk 0:00:18]}  Bb4 {[%clk 0:00:03]} 33. a4 {[%clk 0:00:18]}  Kg5 {[%clk 0:00:03]} 34. g3 {[%clk 0:00:18]}  h5 {[%clk 0:00:04]} 35. Kg2 {[%clk 0:00:18]}  h4 {[%clk 0:00:03]} 36. f4+ {[%clk 0:00:14]}  exf4 {[%clk 0:00:03]} 37. gxf4+ {[%clk 0:00:15]}  Kg4 {[%clk 0:00:04]} 38. h3+ {[%clk 0:00:15]}  Kh5 {[%clk 0:00:04]} 39. Rh7# {[%clk 0:00:16]} 1-0


[Site "https://www.chess.com"]

[Event "Titled Tuesday Blitz June 27 Late 2023"]
[White "Pinto, Daniel"]
[Black "Sanchez, Robert"]
[WhiteFideId "3303144"]
[BlackFideId "2034360"]
[WhiteElo "2402"]
[BlackElo "2139"]
[Result "1-0"]
[Round "11"]
[TimeControl "180+2"]
[Date "2023.06.27"]
[WhiteClock "0:00:06"]
[BlackClock "0:00:12"]
[Board "86"]

1. e4 {[%clk 0:03:00]}  e6 {[%clk 0:02:58]} 2. d4 {[%clk 0:03:00]}  d5 {[%clk 0:02:58]} 3. Nd2 {[%clk 0:03:00]}  Nf6 {[%clk 0:02:59]} 4. e5 {[%clk 0:02:56]}  Nfd7 {[%clk 0:02:59]} 5. Ngf3 {[%clk 0:02:53]}  c5 {[%clk 0:03:00]} 6. c3 {[%clk 0:02:54]}  Nc6 {[%clk 0:03:00]} 7. Bd3 {[%clk 0:02:47]}  Qb6 {[%clk 0:03:00]} 8. O-O {[%clk 0:02:47]}  Be7 {[%clk 0:03:00]} 9. Re1 {[%clk 0:02:40]}  g5 {[%clk 0:03:00]} 10. h3 {[%clk 0:02:33]}  h5 {[%clk 0:02:59]} 11. g4 {[%clk 0:02:16]}  hxg4 {[%clk 0:02:51]} 12. hxg4 {[%clk 0:02:17]}  cxd4 {[%clk 0:02:49]} 13. Nb3 {[%clk 0:02:08]}  dxc3 {[%clk 0:02:44]} 14. bxc3 {[%clk 0:02:08]}  a5 {[%clk 0:02:34]} 15. Nbd4 {[%clk 0:01:58]}  Nc5 {[%clk 0:02:16]} 16. Rb1 {[%clk 0:01:33]}  Qd8 {[%clk 0:02:15]} 17. Bc2 {[%clk 0:01:20]}  Bd7 {[%clk 0:02:07]} 18. Kg2 {[%clk 0:01:13]}  Nxd4 {[%clk 0:01:45]} 19. cxd4 {[%clk 0:01:03]}  Ne4 {[%clk 0:01:46]} 20. Rxb7 {[%clk 0:00:59]}  Kf8 {[%clk 0:01:33]} 21. Ba4 {[%clk 0:00:53]}  Bc8 {[%clk 0:01:15]} 22. Rb3 {[%clk 0:00:34]}  Bd7 {[%clk 0:01:08]} 23. Rb7 {[%clk 0:00:22]}  Bc8 {[%clk 0:01:02]} 24. Rb3 {[%clk 0:00:22]}  Bd7 {[%clk 0:00:56]} 25. Bxd7 {[%clk 0:00:21]}  Qxd7 {[%clk 0:00:56]} 26. Rh1 {[%clk 0:00:21]}  Kg7 {[%clk 0:00:51]} 27. Rxh8 {[%clk 0:00:19]}  Rxh8 {[%clk 0:00:50]} 28. Be3 {[%clk 0:00:17]}  Qc6 {[%clk 0:00:39]} 29. Qc1 {[%clk 0:00:10]}  Qa4 {[%clk 0:00:35]} 30. Rb7 {[%clk 0:00:09]}  Bb4 {[%clk 0:00:34]} 31. Bxg5 {[%clk 0:00:08]}  Qxa2 {[%clk 0:00:27]} 32. Bf6+ {[%clk 0:00:08]}  Kg6 {[%clk 0:00:26]} 33. Nh4+ {[%clk 0:00:06]}  Rxh4 {[%clk 0:00:26]} 34. Bxh4 {[%clk 0:00:07]}  Qe2 {[%clk 0:00:20]} 35. Qf4 {[%clk 0:00:06]}  Bd2 {[%clk 0:00:13]} 36. Qxf7+ {[%clk 0:00:05]}  Kh6 {[%clk 0:00:12]} 37. Qg7# {[%clk 0:00:06]} 1-0


[Site "https://www.chess.com"]

[Event "Titled Tuesday Blitz June 27 Late 2023"]
[White "Bullen, Alex"]
[Black "Bueno, Alfeu Junior Varela"]
[WhiteFideId "1801627"]
[BlackFideId "2108879"]
[WhiteElo "2257"]
[BlackElo "2372"]
[Result "0-1"]
[Round "11"]
[TimeControl "180+2"]
[Date "2023.06.27"]
[WhiteClock "0:01:42"]
[BlackClock "0:02:19"]
[Board "87"]

1. d4 {[%clk 0:03:00]}  e6 {[%clk 0:03:00]} 2. Nf3 {[%clk 0:03:00]}  f5 {[%clk 0:03:00]} 3. Bf4 {[%clk 0:03:01]}  b6 {[%clk 0:03:01]} 4. e3 {[%clk 0:03:01]}  Bb7 {[%clk 0:03:01]} 5. Be2 {[%clk 0:03:01]}  Nf6 {[%clk 0:03:02]} 6. c4 {[%clk 0:03:00]}  Bb4+ {[%clk 0:03:00]} 7. Nc3 {[%clk 0:03:00]}  Bxc3+ {[%clk 0:03:00]} 8. bxc3 {[%clk 0:03:01]}  O-O {[%clk 0:03:00]} 9. Rg1 {[%clk 0:02:57]}  d6 {[%clk 0:02:50]} 10. h3 {[%clk 0:02:57]}  Nbd7 {[%clk 0:02:43]} 11. g4 {[%clk 0:02:56]}  Qe8 {[%clk 0:02:38]} 12. gxf5 {[%clk 0:02:52]}  exf5 {[%clk 0:02:39]} 13. Nh4 {[%clk 0:02:47]}  Ne4 {[%clk 0:02:35]} 14. Bh5 {[%clk 0:02:41]}  Qe7 {[%clk 0:02:32]} 15. Nf3 {[%clk 0:02:14]}  Ndf6 {[%clk 0:02:25]} 16. Ng5 {[%clk 0:02:07]}  Nxc3 {[%clk 0:02:25]} 17. Qb3 {[%clk 0:02:00]}  Nxh5 {[%clk 0:02:23]} 18. Qxc3 {[%clk 0:01:57]}  Nxf4 {[%clk 0:02:23]} 19. c5 {[%clk 0:01:52]}  Ng2+ {[%clk 0:02:22]} 20. Kf1 {[%clk 0:01:50]}  Qxg5 {[%clk 0:02:19]} 21. c6 {[%clk 0:01:42]}  Ba6+ {[%clk 0:02:19]} 0-1


[Site "https://www.chess.com"]

[Event "Titled Tuesday Blitz June 27 Late 2023"]
[White "Schuster, Karsten"]
[Black "Kohler, Aran"]
[WhiteFideId "4611071"]
[BlackFideId "1002856"]
[WhiteElo "2356"]
[BlackElo "2257"]
[Result "1/2-1/2"]
[Round "11"]
[TimeControl "180+2"]
[Date "2023.06.27"]
[WhiteClock "0:00:24"]
[BlackClock "0:00:25"]
[Board "88"]

1. Nf3 {[%clk 0:03:00]}  Nf6 {[%clk 0:02:59]} 2. b3 {[%clk 0:03:00]}  b6 {[%clk 0:02:59]} 3. Bb2 {[%clk 0:03:00]}  e6 {[%clk 0:02:59]} 4. d4 {[%clk 0:02:59]}  Bb7 {[%clk 0:02:59]} 5. c4 {[%clk 0:02:57]}  Bb4+ {[%clk 0:02:57]} 6. Nbd2 {[%clk 0:02:57]}  O-O {[%clk 0:02:54]} 7. e3 {[%clk 0:02:57]}  d5 {[%clk 0:02:53]} 8. cxd5 {[%clk 0:02:56]}  exd5 {[%clk 0:02:49]} 9. a3 {[%clk 0:02:52]}  Bd6 {[%clk 0:02:46]} 10. Bd3 {[%clk 0:02:52]}  Nbd7 {[%clk 0:02:46]} 11. O-O {[%clk 0:02:50]}  Ne4 {[%clk 0:02:46]} 12. Qc2 {[%clk 0:02:45]}  Ndf6 {[%clk 0:02:42]} 13. Rfe1 {[%clk 0:02:38]}  Re8 {[%clk 0:02:41]} 14. Nf1 {[%clk 0:02:38]}  Ng4 {[%clk 0:02:31]} 15. Bxe4 {[%clk 0:02:32]}  dxe4 {[%clk 0:02:31]} 16. N3d2 {[%clk 0:02:27]}  Qh4 {[%clk 0:02:19]} 17. g3 {[%clk 0:02:23]}  Qh3 {[%clk 0:02:19]} 18. Nc4 {[%clk 0:02:21]}  Re6 {[%clk 0:02:16]} 19. Nxd6 {[%clk 0:02:17]}  cxd6 {[%clk 0:02:11]} 20. d5 {[%clk 0:02:04]}  Rh6 {[%clk 0:01:53]} 21. Qxe4 {[%clk 0:01:55]}  Nxh2 {[%clk 0:01:35]} 22. Nxh2 {[%clk 0:01:55]}  Qxh2+ {[%clk 0:01:34]} 23. Kf1 {[%clk 0:01:55]}  Qh3+ {[%clk 0:01:26]} 24. Qg2 {[%clk 0:01:39]}  Qxg2+ {[%clk 0:01:18]} 25. Kxg2 {[%clk 0:01:38]}  Bxd5+ {[%clk 0:01:19]} 26. e4 {[%clk 0:01:39]}  Bxb3 {[%clk 0:01:18]} 27. Rac1 {[%clk 0:01:37]}  Be6 {[%clk 0:01:09]} 28. Rc7 {[%clk 0:01:35]}  a6 {[%clk 0:01:08]} 29. Rec1 {[%clk 0:01:34]}  d5 {[%clk 0:01:03]} 30. Kf3 {[%clk 0:01:22]}  dxe4+ {[%clk 0:01:02]} 31. Kxe4 {[%clk 0:01:18]}  b5 {[%clk 0:01:02]} 32. Re7 {[%clk 0:01:13]}  Bc4 {[%clk 0:00:57]} 33. Rd1 {[%clk 0:01:05]}  Re6+ {[%clk 0:00:55]} 34. Rxe6 {[%clk 0:01:05]}  Bxe6 {[%clk 0:00:55]} 35. Bc3 {[%clk 0:01:01]}  h5 {[%clk 0:00:47]} 36. Ba5 {[%clk 0:00:56]}  Rc8 {[%clk 0:00:42]} 37. Rd8+ {[%clk 0:00:54]}  Rxd8 {[%clk 0:00:41]} 38. Bxd8 {[%clk 0:00:54]}  Kf8 {[%clk 0:00:42]} 39. f4 {[%clk 0:00:51]}  Ke8 {[%clk 0:00:41]} 40. Ba5 {[%clk 0:00:51]}  Kd7 {[%clk 0:00:41]} 41. Bc3 {[%clk 0:00:49]}  f6 {[%clk 0:00:40]} 42. f5 {[%clk 0:00:47]}  Bb3 {[%clk 0:00:39]} 43. Bb4 {[%clk 0:00:46]}  Ke8 {[%clk 0:00:33]} 44. Kf4 {[%clk 0:00:44]}  Kf7 {[%clk 0:00:33]} 45. Ba5 {[%clk 0:00:42]}  g6 {[%clk 0:00:32]} 46. fxg6+ {[%clk 0:00:42]}  Kxg6 {[%clk 0:00:33]} 47. Bb4 {[%clk 0:00:41]}  Bc2 {[%clk 0:00:32]} 48. Bc3 {[%clk 0:00:41]}  Kf7 {[%clk 0:00:32]} 49. Bd4 {[%clk 0:00:40]}  Ke6 {[%clk 0:00:33]} 50. Bc3 {[%clk 0:00:40]}  Kd5 {[%clk 0:00:25]} 51. Bxf6 {[%clk 0:00:38]}  a5 {[%clk 0:00:26]} 52. Bc3 {[%clk 0:00:37]}  b4 {[%clk 0:00:25]} 53. axb4 {[%clk 0:00:37]}  a4 {[%clk 0:00:26]} 54. g4 {[%clk 0:00:27]}  hxg4 {[%clk 0:00:24]} 55. Kxg4 {[%clk 0:00:27]}  Kc4 {[%clk 0:00:25]} 56. Bh8 {[%clk 0:00:26]}  Kxb4 {[%clk 0:00:25]} 57. Kf4 {[%clk 0:00:26]}  Kb3 {[%clk 0:00:25]} 58. Ke3 {[%clk 0:00:26]}  a3 {[%clk 0:00:25]} 59. Kd2 {[%clk 0:00:26]}  Be4 {[%clk 0:00:24]} 60. Kc1 {[%clk 0:00:26]}  a2 {[%clk 0:00:24]} 61. Bg7 {[%clk 0:00:24]}  Bf5 {[%clk 0:00:25]} 62. Bh8 {[%clk 0:00:24]}  Be4 {[%clk 0:00:25]} 63. Bg7 {[%clk 0:00:24]}  a1=Q+ {[%clk 0:00:25]} 64. Bxa1 {[%clk 0:00:24]} 1/2-1/2


[Site "https://www.chess.com"]

[Event "Titled Tuesday Blitz June 27 Late 2023"]
[White "Brown, Raehanna"]
[Black "MAHanif"]
[WhiteFideId "7402740"]
[WhiteElo "2161"]
[BlackElo "2323"]
[Result "0-1"]
[Round "11"]
[TimeControl "180+2"]
[Date "2023.06.27"]
[WhiteClock "0:00:00"]
[BlackClock "0:00:02"]
[Board "90"]

1. c4 {[%clk 0:02:57]}  Nf6 {[%clk 0:02:46]} 2. Nc3 {[%clk 0:02:56]}  g6 {[%clk 0:02:47]} 3. g3 {[%clk 0:02:44]}  Bg7 {[%clk 0:02:46]} 4. Bg2 {[%clk 0:02:43]}  O-O {[%clk 0:02:47]} 5. Nf3 {[%clk 0:02:43]}  c6 {[%clk 0:02:47]} 6. O-O {[%clk 0:02:42]}  Na6 {[%clk 0:02:47]} 7. d4 {[%clk 0:02:40]}  Nc7 {[%clk 0:02:38]} 8. e4 {[%clk 0:02:37]}  d5 {[%clk 0:02:31]} 9. cxd5 {[%clk 0:02:36]}  cxd5 {[%clk 0:02:31]} 10. e5 {[%clk 0:02:28]}  Nfe8 {[%clk 0:02:26]} 11. Nd2 {[%clk 0:02:24]}  e6 {[%clk 0:02:21]} 12. b3 {[%clk 0:02:22]}  Bd7 {[%clk 0:02:21]} 13. Ba3 {[%clk 0:02:21]}  Nb5 {[%clk 0:01:53]} 14. Nxb5 {[%clk 0:02:16]}  Bxb5 {[%clk 0:01:52]} 15. Re1 {[%clk 0:02:14]}  Qb6 {[%clk 0:01:48]} 16. Nf3 {[%clk 0:02:10]}  Nc7 {[%clk 0:01:41]} 17. Bc5 {[%clk 0:02:01]}  Qa6 {[%clk 0:01:37]} 18. Bxf8 {[%clk 0:01:51]}  Bxf8 {[%clk 0:01:36]} 19. Qc1 {[%clk 0:01:48]}  Rc8 {[%clk 0:01:30]} 20. Qf4 {[%clk 0:01:47]}  Qc6 {[%clk 0:01:26]} 21. Rec1 {[%clk 0:01:45]}  Qd7 {[%clk 0:01:25]} 22. Rc2 {[%clk 0:01:28]}  Bc6 {[%clk 0:01:21]} 23. Rac1 {[%clk 0:01:27]}  a6 {[%clk 0:01:21]} 24. Bh3 {[%clk 0:01:13]}  Rb8 {[%clk 0:01:11]} 25. Bg2 {[%clk 0:00:44]}  Ba3 {[%clk 0:01:04]} 26. Rd1 {[%clk 0:00:35]}  Nb5 {[%clk 0:00:37]} 27. Ng5 {[%clk 0:00:28]}  Qe7 {[%clk 0:00:24]} 28. Qh4 {[%clk 0:00:23]}  h5 {[%clk 0:00:18]} 29. g4 {[%clk 0:00:23]}  Kg7 {[%clk 0:00:13]} 30. gxh5 {[%clk 0:00:20]}  Rh8 {[%clk 0:00:13]} 31. Bf3 {[%clk 0:00:16]}  Bb4 {[%clk 0:00:08]} 32. Kh1 {[%clk 0:00:12]}  Nc3 {[%clk 0:00:06]} 33. Rg1 {[%clk 0:00:12]}  Ne4 {[%clk 0:00:06]} 34. Bxe4 {[%clk 0:00:10]}  dxe4 {[%clk 0:00:06]} 35. h3 {[%clk 0:00:08]}  Rxh5 {[%clk 0:00:05]} 36. Qg3 {[%clk 0:00:04]}  e3+ {[%clk 0:00:06]} 37. Kh2 {[%clk 0:00:03]}  exf2 {[%clk 0:00:05]} 38. Rxf2 {[%clk 0:00:00]}  Be1 {[%clk 0:00:02]} 0-1


[Site "https://www.chess.com"]

[Event "Titled Tuesday Blitz June 27 Late 2023"]
[White "Gerbelli Neto, Eduardo"]
[Black "Burke, Paul"]
[WhiteFideId "2103281"]
[BlackFideId "2605767"]
[WhiteElo "2293"]
[BlackElo "1957"]
[Result "1-0"]
[Round "11"]
[TimeControl "180+2"]
[Date "2023.06.27"]
[WhiteClock "0:00:51"]
[BlackClock "0:01:17"]
[Board "91"]

1. e4 {[%clk 0:03:00]}  e5 {[%clk 0:02:58]} 2. Nf3 {[%clk 0:03:00]}  Nc6 {[%clk 0:02:58]} 3. d4 {[%clk 0:02:57]}  exd4 {[%clk 0:02:58]} 4. c3 {[%clk 0:02:54]}  d5 {[%clk 0:02:57]} 5. exd5 {[%clk 0:02:52]}  Qxd5 {[%clk 0:02:57]} 6. cxd4 {[%clk 0:02:45]}  Nf6 {[%clk 0:02:57]} 7. Nc3 {[%clk 0:02:45]}  Bb4 {[%clk 0:02:55]} 8. Be2 {[%clk 0:02:40]}  Bg4 {[%clk 0:02:54]} 9. O-O {[%clk 0:02:39]}  Qh5 {[%clk 0:02:54]} 10. h3 {[%clk 0:02:05]}  Bd6 {[%clk 0:02:53]} 11. Nb5 {[%clk 0:01:59]}  O-O-O {[%clk 0:02:39]} 12. Nxd6+ {[%clk 0:01:58]}  Rxd6 {[%clk 0:02:38]} 13. hxg4 {[%clk 0:01:45]}  Nxg4 {[%clk 0:02:37]} 14. Bf4 {[%clk 0:01:46]}  Re8 {[%clk 0:02:02]} 15. Nh2 {[%clk 0:01:33]}  Rxe2 {[%clk 0:01:31]} 16. Qxe2 {[%clk 0:01:33]}  Rg6 {[%clk 0:01:24]} 17. Nxg4 {[%clk 0:00:55]}  Rxg4 {[%clk 0:01:23]} 18. Bg3 {[%clk 0:00:52]}  Nxd4 {[%clk 0:01:17]} 19. Qe8# {[%clk 0:00:51]} 1-0


[Site "https://www.chess.com"]

[Event "Titled Tuesday Blitz June 27 Late 2023"]
[White "Hartikainen, Jarmo"]
[Black "KorolDimitriy75"]
[WhiteFideId "503134"]
[WhiteElo "2158"]
[BlackElo "2396"]
[Result "0-1"]
[Round "11"]
[TimeControl "180+2"]
[Date "2023.06.27"]
[WhiteClock "0:00:03"]
[BlackClock "0:00:05"]
[Board "92"]

1. e4 {[%clk 0:03:00]}  c5 {[%clk 0:03:00]} 2. c3 {[%clk 0:03:01]}  d5 {[%clk 0:02:59]} 3. exd5 {[%clk 0:03:01]}  Qxd5 {[%clk 0:03:00]} 4. d4 {[%clk 0:03:01]}  cxd4 {[%clk 0:03:01]} 5. cxd4 {[%clk 0:03:01]}  Nc6 {[%clk 0:03:01]} 6. Nf3 {[%clk 0:03:01]}  e5 {[%clk 0:03:01]} 7. Nc3 {[%clk 0:02:58]}  Bb4 {[%clk 0:03:01]} 8. Bd2 {[%clk 0:02:58]}  Bxc3 {[%clk 0:03:01]} 9. Bxc3 {[%clk 0:02:59]}  e4 {[%clk 0:03:01]} 10. Ne5 {[%clk 0:02:59]}  Nxe5 {[%clk 0:03:01]} 11. dxe5 {[%clk 0:02:59]}  Ne7 {[%clk 0:03:02]} 12. Qxd5 {[%clk 0:02:55]}  Nxd5 {[%clk 0:03:03]} 13. Bb5+ {[%clk 0:02:54]}  Bd7 {[%clk 0:03:02]} 14. Bxd7+ {[%clk 0:02:54]}  Kxd7 {[%clk 0:03:03]} 15. O-O-O {[%clk 0:01:58]}  Ke6 {[%clk 0:03:03]} 16. Rhe1 {[%clk 0:01:56]}  Rhc8 {[%clk 0:03:02]} 17. Kc2 {[%clk 0:01:45]}  Nxc3 {[%clk 0:02:19]} 18. bxc3 {[%clk 0:01:43]}  Rc4 {[%clk 0:02:09]} 19. Rd6+ {[%clk 0:01:20]}  Kxe5 {[%clk 0:01:36]} 20. Rd7 {[%clk 0:01:19]}  Rac8 {[%clk 0:01:35]} 21. Re3 {[%clk 0:01:18]}  R8c7 {[%clk 0:01:29]} 22. Rd8 {[%clk 0:00:44]}  f5 {[%clk 0:01:21]} 23. Re8+ {[%clk 0:00:30]}  Kf6 {[%clk 0:01:10]} 24. g3 {[%clk 0:00:30]}  b5 {[%clk 0:00:53]} 25. a3 {[%clk 0:00:28]}  R7c6 {[%clk 0:00:27]} 26. Kb3 {[%clk 0:00:26]}  a6 {[%clk 0:00:20]} 27. h4 {[%clk 0:00:26]}  g6 {[%clk 0:00:20]} 28. Rh8 {[%clk 0:00:20]}  h5 {[%clk 0:00:20]} 29. Rf8+ {[%clk 0:00:19]}  Ke5 {[%clk 0:00:19]} 30. Rd8 {[%clk 0:00:19]}  Rd6 {[%clk 0:00:17]} 31. f4+ {[%clk 0:00:19]}  Kd5 {[%clk 0:00:15]} 32. Rg8 {[%clk 0:00:16]}  Kc5 {[%clk 0:00:14]} 33. Re1 {[%clk 0:00:15]}  Rd3 {[%clk 0:00:13]} 34. Rc8+ {[%clk 0:00:14]}  Kd5 {[%clk 0:00:12]} 35. Rxc4 {[%clk 0:00:13]}  bxc4+ {[%clk 0:00:12]} 36. Kb4 {[%clk 0:00:13]}  Rxg3 {[%clk 0:00:12]} 37. Rd1+ {[%clk 0:00:14]}  Rd3 {[%clk 0:00:12]} 38. Rg1 {[%clk 0:00:14]}  e3 {[%clk 0:00:11]} 39. Rxg6 {[%clk 0:00:13]}  e2 {[%clk 0:00:09]} 40. Rg1 {[%clk 0:00:13]}  Rd1 {[%clk 0:00:09]} 41. Rg5 {[%clk 0:00:12]}  e1=Q {[%clk 0:00:08]} 42. Rxf5+ {[%clk 0:00:13]}  Kc6 {[%clk 0:00:08]} 43. Rf6+ {[%clk 0:00:13]}  Kd7 {[%clk 0:00:08]} 44. Rf7+ {[%clk 0:00:14]}  Ke8 {[%clk 0:00:08]} 45. Ra7 {[%clk 0:00:12]}  Rc1 {[%clk 0:00:08]} 46. Ra8+ {[%clk 0:00:11]}  Kd7 {[%clk 0:00:08]} 47. Ra7+ {[%clk 0:00:10]}  Kc8 {[%clk 0:00:09]} 48. Rxa6 {[%clk 0:00:10]}  Qxc3+ {[%clk 0:00:08]} 49. Kb5 {[%clk 0:00:10]}  Qb3+ {[%clk 0:00:08]} 50. Kc5 {[%clk 0:00:09]}  c3 {[%clk 0:00:07]} 51. Rc6+ {[%clk 0:00:08]}  Kb8 {[%clk 0:00:06]} 52. f5 {[%clk 0:00:08]}  c2 {[%clk 0:00:05]} 53. f6 {[%clk 0:00:08]}  Rf1 {[%clk 0:00:05]} 54. Rb6+ {[%clk 0:00:07]}  Qxb6+ {[%clk 0:00:05]} 55. Kxb6 {[%clk 0:00:07]}  c1=Q {[%clk 0:00:06]} 56. f7 {[%clk 0:00:03]}  Rxf7 {[%clk 0:00:05]} 0-1


[Site "https://www.chess.com"]